[Event "Live Chess"]
[Site "Chess.com"]
[Date "2023.05.21"]
[Round "-"]
[White "alanmike75"]
[Black "Tushinskiy"]
[Result "0-1"]
[WhiteElo "1575"]
[BlackElo "2159"]
[TimeControl "300"]
[EndTime "18:07:14 PDT"]
[Termination "Tushinskiy won by resignation"]

1. e4 {[%clk 0:04:48.6]} 1... e5 {[%clk 0:04:58.7]} 2. Nf3 {[%clk 0:04:47.3]}
2... d6 {[%clk 0:04:58.6]} 3. d4 {[%clk 0:04:45.6]} 3... Bg4 {[%clk 0:04:57.7]}
4. dxe5 {[%clk 0:04:44.3]} 4... Nd7 {[%clk 0:04:57.1]} 5. exd6 {[%clk
0:04:42.7]} 5... Bxd6 {[%clk 0:04:57]} 6. Be2 {[%clk 0:04:38.8]} 6... Qe7 {[%clk
0:04:55.7]} 7. Nc3 {[%clk 0:04:36.4]} 7... Ngf6 {[%clk 0:04:54.6]} 8. Bg5 {[%clk
0:04:34.3]} 8... O-O-O {[%clk 0:04:53.6]} 9. O-O {[%clk 0:04:06.5]} 9... Bxf3
{[%clk 0:04:52]} 10. Bxf3 {[%clk 0:04:04.9]} 10... Qe5 {[%clk 0:04:50.5]} 0-1

[Event "Live Chess"]
[Site "Chess.com"]
[Date "2023.05.21"]
[Round "-"]
[White "LanceMaster23"]
[Black "nigelst"]
[Result "1-0"]
[WhiteElo "1932"]
[BlackElo "1781"]
[TimeControl "300"]
[EndTime "18:07:39 PDT"]
[Termination "LanceMaster23 won by resignation"]

1. Nf3 {[%clk 0:04:59.1]} 1... Nf6 {[%clk 0:04:57.7]} 2. d4 {[%clk 0:04:58.5]}
2... d5 {[%clk 0:04:54]} 3. Bf4 {[%clk 0:04:57.8]} 3... Bf5 {[%clk 0:04:50.7]}
4. e3 {[%clk 0:04:57.1]} 4... e6 {[%clk 0:04:49.5]} 5. Be2 {[%clk 0:04:56.1]}
5... Bd6 {[%clk 0:04:47.4]} 6. Bg3 {[%clk 0:04:55.2]} 6... Bxg3 {[%clk
0:04:44.6]} 7. hxg3 {[%clk 0:04:55.1]} 7... O-O {[%clk 0:04:42.1]} 8. c3 {[%clk
0:04:54.1]} 8... Qd6 {[%clk 0:04:33.1]} 9. Nbd2 {[%clk 0:04:53.1]} 9... c5
{[%clk 0:04:31.9]} 10. Qb3 {[%clk 0:04:51.8]} 10... Qb6 {[%clk 0:04:26.3]} 11.
Nh4 {[%clk 0:04:50]} 11... Qxb3 {[%clk 0:04:24.3]} 12. axb3 {[%clk 0:04:48.9]}
12... Bg6 {[%clk 0:04:20.5]} 13. Nxg6 {[%clk 0:04:47.4]} 13... hxg6 {[%clk
0:04:18.8]} 14. dxc5 {[%clk 0:04:47]} 14... Rc8 {[%clk 0:04:07.9]} 15. b4 {[%clk
0:04:45.3]} 15... Nc6 {[%clk 0:04:01.3]} 16. Nb3 {[%clk 0:04:40.4]} 16... Ne5
{[%clk 0:03:53.1]} 17. O-O {[%clk 0:04:26.8]} 17... a6 {[%clk 0:03:50]} 18. Nd4
{[%clk 0:04:08.9]} 18... Ne4 {[%clk 0:03:42.3]} 19. Ra3 {[%clk 0:03:57.7]} 19...
Nd2 {[%clk 0:03:35.7]} 20. Rfa1 {[%clk 0:03:54.5]} 20... Ndc4 {[%clk 0:03:34]}
21. R3a2 {[%clk 0:03:48.9]} 21... Nc6 {[%clk 0:03:25.4]} 22. Bxc4 {[%clk
0:02:51.7]} 22... dxc4 {[%clk 0:03:22.3]} 23. Nxc6 {[%clk 0:02:50.8]} 23... Rxc6
{[%clk 0:03:20.5]} 24. Rd1 {[%clk 0:02:50.4]} 24... Rcc8 {[%clk 0:03:18.7]} 25.
Kf1 {[%clk 0:02:33.9]} 25... Rd8 {[%clk 0:03:16.3]} 26. Raa1 {[%clk 0:02:33]}
26... Kf8 {[%clk 0:03:13.8]} 27. Ke2 {[%clk 0:02:31.4]} 27... Ke7 {[%clk
0:03:12.7]} 28. Rd4 {[%clk 0:02:22]} 28... Rxd4 {[%clk 0:03:10.8]} 29. cxd4
{[%clk 0:02:20.5]} 29... Rd8 {[%clk 0:03:02.1]} 30. f4 {[%clk 0:02:14.4]} 30...
Kf6 {[%clk 0:03:00.6]} 31. g4 {[%clk 0:02:12.1]} 31... g5 {[%clk 0:02:58.8]} 32.
g3 {[%clk 0:02:10.9]} 32... Rh8 {[%clk 0:02:53.4]} 33. Rf1 {[%clk 0:01:57.1]}
33... Rh3 {[%clk 0:02:48.1]} 34. Rf3 {[%clk 0:01:51]} 34... Rh2+ {[%clk
0:02:45.9]} 35. Rf2 {[%clk 0:01:50.7]} 35... Rh3 {[%clk 0:02:44.2]} 36. Rg2
{[%clk 0:01:49.1]} 36... Rh1 {[%clk 0:02:40.4]} 37. Kd2 {[%clk 0:01:48.2]} 37...
Rb1 {[%clk 0:02:37.4]} 38. Kc3 {[%clk 0:01:33.3]} 38... Rc1+ {[%clk 0:02:35.4]}
39. Kd2 {[%clk 0:01:32]} 39... Rb1 {[%clk 0:02:33.8]} 40. Kc2 {[%clk 0:01:31.2]}
40... Re1 {[%clk 0:02:30.4]} 41. Kc3 {[%clk 0:01:22.2]} 41... Rc1+ {[%clk
0:02:28.1]} 42. Rc2 {[%clk 0:01:21.9]} 42... Re1 {[%clk 0:02:24.7]} 43. Kxc4
{[%clk 0:01:18.9]} 43... Rxe3 {[%clk 0:02:23.5]} 44. Rf2 {[%clk 0:01:10.7]}
44... Rxg3 {[%clk 0:02:20.3]} 45. fxg5+ {[%clk 0:01:09.9]} 45... Kg6 {[%clk
0:02:17.3]} 46. Rf4 {[%clk 0:01:03.2]} 46... Rg2 {[%clk 0:02:13.7]} 47. Kb3
{[%clk 0:00:44.5]} 47... Rg3+ {[%clk 0:02:00.7]} 48. Ka4 {[%clk 0:00:43.7]}
48... Rg2 {[%clk 0:01:59]} 49. Kb3 {[%clk 0:00:36.2]} 49... Rg3+ {[%clk
0:01:57.5]} 50. Kc4 {[%clk 0:00:31.9]} 50... Rg2 {[%clk 0:01:53.8]} 51. b3
{[%clk 0:00:31.5]} 51... Rc2+ {[%clk 0:01:50.1]} 52. Kd3 {[%clk 0:00:30.7]}
52... Rb2 {[%clk 0:01:49.2]} 53. Kc3 {[%clk 0:00:30.1]} 53... Rg2 {[%clk
0:01:46.2]} 54. b5 {[%clk 0:00:29.7]} 54... axb5 {[%clk 0:01:44]} 55. Kb4 {[%clk
0:00:27.1]} 55... Rb2 {[%clk 0:01:42.4]} 56. Rf3 {[%clk 0:00:26.8]} 56... Kxg5
{[%clk 0:01:40.5]} 57. Rxf7 {[%clk 0:00:25.5]} 57... g6 {[%clk 0:01:36.6]} 58.
Rxb7 {[%clk 0:00:25.1]} 58... Kxg4 {[%clk 0:01:35.6]} 59. Rxb5 {[%clk
0:00:24.4]} 59... Kf3 {[%clk 0:01:30.2]} 60. Rb6 {[%clk 0:00:23.6]} 60... g5
{[%clk 0:01:29.1]} 61. Rxe6 {[%clk 0:00:22.9]} 61... g4 {[%clk 0:01:28.2]} 62.
Rf6+ {[%clk 0:00:22.6]} 62... Ke3 {[%clk 0:01:24.2]} 63. Rg6 {[%clk 0:00:21.3]}
63... Kf3 {[%clk 0:01:23.1]} 64. d5 {[%clk 0:00:20.6]} 64... g3 {[%clk
0:01:21.7]} 65. d6 {[%clk 0:00:20]} 65... g2 {[%clk 0:01:16.6]} 66. d7 {[%clk
0:00:18.9]} 66... Rd2 {[%clk 0:01:15.4]} 67. c6 {[%clk 0:00:18.3]} 67... Rd6
{[%clk 0:01:10.7]} 68. Rxd6 {[%clk 0:00:14.3]} 68... g1=Q {[%clk 0:01:08.3]} 69.
d8=Q {[%clk 0:00:14.2]} 69... Qe1+ {[%clk 0:00:59.7]} 70. Rd2 {[%clk 0:00:13.5]}
70... Qe4+ {[%clk 0:00:51.1]} 71. Qd4 {[%clk 0:00:13.1]} 71... Qe7+ {[%clk
0:00:49.7]} 72. Qc5 {[%clk 0:00:11.9]} 72... Qe4+ {[%clk 0:00:45.8]} 73. Rd4
{[%clk 0:00:11.8]} 73... Qe1+ {[%clk 0:00:44.4]} 74. Qc3+ {[%clk 0:00:11.7]}
74... Qxc3+ {[%clk 0:00:42.5]} 75. Kxc3 {[%clk 0:00:11.6]} 75... Ke3 {[%clk
0:00:41]} 76. c7 {[%clk 0:00:11.5]} 76... Ke2 {[%clk 0:00:40]} 77. c8=Q {[%clk
0:00:11.4]} 77... Kf2 {[%clk 0:00:39.1]} 78. Qe6 {[%clk 0:00:11.3]} 1-0

[Event "Live Chess"]
[Site "Chess.com"]
[Date "2023.05.21"]
[Round "-"]
[White "IgorSchukin"]
[Black "Olisingapore"]
[Result "1-0"]
[WhiteElo "1758"]
[BlackElo "1800"]
[TimeControl "300"]
[EndTime "18:07:44 PDT"]
[Termination "IgorSchukin won by resignation"]

1. e4 {[%clk 0:04:57.7]} 1... e5 {[%clk 0:04:59.5]} 2. Nf3 {[%clk 0:04:55.9]}
2... Nc6 {[%clk 0:04:56.2]} 3. Nc3 {[%clk 0:04:55.1]} 3... Nf6 {[%clk
0:04:54.1]} 4. d4 {[%clk 0:04:53.8]} 4... Nxd4 {[%clk 0:04:48.1]} 5. Nxd4 {[%clk
0:04:52.7]} 5... exd4 {[%clk 0:04:47.5]} 6. Qxd4 {[%clk 0:04:51.9]} 6... b6
{[%clk 0:04:40.9]} 7. e5 {[%clk 0:04:48.1]} 7... Ng8 {[%clk 0:04:23.1]} 8. Bc4
{[%clk 0:04:39.3]} 8... Bb7 {[%clk 0:04:18.5]} 9. O-O {[%clk 0:04:25.6]} 9...
Bc5 {[%clk 0:04:04.7]} 10. Qf4 {[%clk 0:04:20.2]} 10... Nh6 {[%clk 0:03:55.2]}
11. Ne4 {[%clk 0:04:10.8]} 11... d5 {[%clk 0:03:45.8]} 12. exd6 {[%clk
0:04:08.2]} 12... Bxe4 {[%clk 0:03:34.5]} 13. Qxe4+ {[%clk 0:04:05.3]} 13... Kf8
{[%clk 0:03:31.9]} 14. dxc7 {[%clk 0:03:55.4]} 14... Qxc7 {[%clk 0:03:29.5]} 15.
Qxa8+ {[%clk 0:03:53.8]} 15... Ke7 {[%clk 0:03:27.3]} 16. Qxh8 {[%clk
0:03:51.6]} 16... Ng4 {[%clk 0:03:24.5]} 17. g3 {[%clk 0:03:47.4]} 17... Nxf2
{[%clk 0:03:11.1]} 18. Re1+ {[%clk 0:03:35.4]} 18... Kf6 {[%clk 0:03:01.9]} 19.
Bg5+ {[%clk 0:03:21]} 19... Kg6 {[%clk 0:02:45.4]} 20. Be3 {[%clk 0:03:02.2]}
20... Bxe3 {[%clk 0:02:39.3]} 21. Rxe3 {[%clk 0:02:59.5]} 21... Nh3+ {[%clk
0:02:38.5]} 22. Kg2 {[%clk 0:02:54.7]} 22... Qxc4 {[%clk 0:02:34.7]} 23. Kxh3
{[%clk 0:02:50.5]} 23... Qxc2 {[%clk 0:02:31.6]} 24. Rae1 {[%clk 0:02:44]} 24...
Qf5+ {[%clk 0:02:30.7]} 25. g4 {[%clk 0:02:39]} 25... Qf2 {[%clk 0:02:18.6]} 26.
Re6+ {[%clk 0:01:55]} 26... fxe6 {[%clk 0:02:08.9]} 27. Rxe6+ {[%clk 0:01:51.2]}
27... Kg5 {[%clk 0:02:08.4]} 28. Qxg7+ {[%clk 0:01:48.7]} 28... Kf4 {[%clk
0:02:07.1]} 29. Rf6+ {[%clk 0:01:47.1]} 29... Ke3 {[%clk 0:02:05.9]} 30. Rxf2
{[%clk 0:01:45.7]} 30... Kxf2 {[%clk 0:02:05.8]} 31. Qxh7 {[%clk 0:01:43.9]}
31... Ke3 {[%clk 0:02:05.5]} 32. g5 {[%clk 0:01:42.8]} 32... Kd4 {[%clk
0:02:05.4]} 33. g6 {[%clk 0:01:42.1]} 1-0

[Event "Live Chess"]
[Site "Chess.com"]
[Date "2023.05.21"]
[Round "-"]
[White "LutherSullivan"]
[Black "Missedidea"]
[Result "1-0"]
[WhiteElo "2130"]
[BlackElo "1839"]
[TimeControl "300"]
[EndTime "18:07:50 PDT"]
[Termination "LutherSullivan won on time"]

1. d4 {[%clk 0:04:57.2]} 1... Nf6 {[%clk 0:04:58]} 2. c4 {[%clk 0:04:54.8]} 2...
g6 {[%clk 0:04:56.7]} 3. Nc3 {[%clk 0:04:53.4]} 3... Bg7 {[%clk 0:04:55.5]} 4.
e4 {[%clk 0:04:52.6]} 4... d6 {[%clk 0:04:54.1]} 5. f3 {[%clk 0:04:48.6]} 5...
O-O {[%clk 0:04:52.2]} 6. Be3 {[%clk 0:04:48.1]} 6... Nc6 {[%clk 0:04:49.9]} 7.
Qd2 {[%clk 0:04:38.1]} 7... a6 {[%clk 0:04:46.3]} 8. Rc1 {[%clk 0:04:36.6]} 8...
e5 {[%clk 0:04:42.9]} 9. d5 {[%clk 0:04:34.4]} 9... Nd4 {[%clk 0:04:36.8]} 10.
Nge2 {[%clk 0:04:32.1]} 10... c5 {[%clk 0:04:32.5]} 11. dxc6 {[%clk 0:04:27.2]}
11... Nxc6 {[%clk 0:04:30.3]} 12. Nd5 {[%clk 0:04:20.5]} 12... Nxd5 {[%clk
0:04:19]} 13. cxd5 {[%clk 0:04:15.2]} 13... Ne7 {[%clk 0:04:16.5]} 14. Nc3
{[%clk 0:04:07.7]} 14... b5 {[%clk 0:04:11.5]} 15. a4 {[%clk 0:03:52.1]} 15...
b4 {[%clk 0:04:04.6]} 16. Nd1 {[%clk 0:03:43.8]} 16... a5 {[%clk 0:04:01]} 17.
b3 {[%clk 0:03:41.2]} 17... f5 {[%clk 0:03:55.7]} 18. Nb2 {[%clk 0:03:37.2]}
18... f4 {[%clk 0:03:51.9]} 19. Bf2 {[%clk 0:03:35]} 19... g5 {[%clk 0:03:34]}
20. Nc4 {[%clk 0:03:27.6]} 20... Rb8 {[%clk 0:03:26.5]} 21. Ba7 {[%clk
0:03:16.3]} 21... Rb7 {[%clk 0:03:24.1]} 22. Qf2 {[%clk 0:03:14.2]} 22... g4
{[%clk 0:03:16]} 23. Bb6 {[%clk 0:03:11.3]} 23... Qe8 {[%clk 0:03:07.5]} 24.
Nxa5 {[%clk 0:03:06]} 24... Rxb6 {[%clk 0:02:47.9]} 25. Qxb6 {[%clk 0:03:01.6]}
25... Qh5 {[%clk 0:02:38.8]} 26. Qf2 {[%clk 0:02:22]} 26... Ng6 {[%clk
0:02:09.4]} 27. Be2 {[%clk 0:02:12.5]} 27... g3 {[%clk 0:02:05.1]} 28. Qg1
{[%clk 0:02:08.4]} 28... Qg5 {[%clk 0:01:42.1]} 29. h3 {[%clk 0:01:56.7]} 29...
Nh4 {[%clk 0:01:30.6]} 30. Nc6 {[%clk 0:01:48.5]} 30... Bd7 {[%clk 0:01:26.4]}
31. Bb5 {[%clk 0:01:28]} 31... Nxf3+ {[%clk 0:01:06.9]} 32. gxf3 {[%clk
0:01:21.3]} 32... g2 {[%clk 0:01:05.8]} 33. Rh2 {[%clk 0:01:16.7]} 33... Qg3+
{[%clk 0:01:04.1]} 34. Ke2 {[%clk 0:01:14.7]} 34... Bxh3 {[%clk 0:00:58.4]} 35.
a5 {[%clk 0:01:01.1]} 35... Ra8 {[%clk 0:00:51.4]} 36. a6 {[%clk 0:00:59.4]}
36... Bf6 {[%clk 0:00:39.9]} 37. a7 {[%clk 0:00:53.5]} 37... Kf7 {[%clk
0:00:29]} 38. Ba6 {[%clk 0:00:48.2]} 38... Bh4 {[%clk 0:00:18.8]} 39. Bb7 {[%clk
0:00:45.9]} 39... Bg4 {[%clk 0:00:13.1]} 40. Qxg2 {[%clk 0:00:43.5]} 40... Bxf3+
{[%clk 0:00:11.7]} 41. Qxf3 {[%clk 0:00:42.1]} 41... Qxh2+ {[%clk 0:00:10.6]}
42. Kd3 {[%clk 0:00:40.5]} 42... Qb2 {[%clk 0:00:07.1]} 43. Qh5+ {[%clk
0:00:34.9]} 43... Kg7 {[%clk 0:00:03.9]} 44. Rg1+ {[%clk 0:00:32]} 44... Kh8
{[%clk 0:00:01.9]} 45. Nxb4 {[%clk 0:00:10.9]} 1-0

[Event "Live Chess"]
[Site "Chess.com"]
[Date "2023.05.21"]
[Round "-"]
[White "Long1968"]
[Black "Jo1ts"]
[Result "0-1"]
[WhiteElo "1060"]
[BlackElo "833"]
[TimeControl "300"]
[EndTime "18:08:00 PDT"]
[Termination "Jo1ts won on time"]

1. e4 {[%clk 0:04:56.6]} 1... d5 {[%clk 0:04:59.3]} 2. exd5 {[%clk 0:04:53.1]}
2... Qxd5 {[%clk 0:04:57.6]} 3. Nc3 {[%clk 0:04:49.1]} 3... Qa5 {[%clk
0:04:55.4]} 4. d4 {[%clk 0:04:46]} 4... Nf6 {[%clk 0:04:52.1]} 5. Bd2 {[%clk
0:04:43.8]} 5... e5 {[%clk 0:04:50]} 6. Ne4 {[%clk 0:04:30.1]} 6... Qd5 {[%clk
0:04:43.4]} 7. Nxf6+ {[%clk 0:04:24.4]} 7... gxf6 {[%clk 0:04:35.4]} 8. Be3
{[%clk 0:03:54.4]} 8... Nc6 {[%clk 0:04:33.1]} 9. c4 {[%clk 0:03:43.1]} 9... Qe4
{[%clk 0:04:28]} 10. Nf3 {[%clk 0:03:26.1]} 10... Bg4 {[%clk 0:04:21.5]} 11. Be2
{[%clk 0:03:20.1]} 11... O-O-O {[%clk 0:04:12.2]} 12. d5 {[%clk 0:03:10.2]}
12... Nb4 {[%clk 0:03:45.6]} 13. Rc1 {[%clk 0:02:55.3]} 13... Bxf3 {[%clk
0:03:34.6]} 14. gxf3 {[%clk 0:02:38.9]} 14... Qf5 {[%clk 0:03:22.2]} 15. a3
{[%clk 0:02:08.3]} 15... Na6 {[%clk 0:03:13.4]} 16. Bd3 {[%clk 0:01:39.5]} 16...
Qh3 {[%clk 0:03:01]} 17. Bf1 {[%clk 0:01:33.3]} 17... Qh5 {[%clk 0:02:56.2]} 18.
h4 {[%clk 0:01:27.5]} 18... Bc5 {[%clk 0:02:51.2]} 19. b4 {[%clk 0:01:04.6]}
19... Bxe3 {[%clk 0:02:43.8]} 20. fxe3 {[%clk 0:01:00.2]} 20... f5 {[%clk
0:02:29.2]} 21. f4 {[%clk 0:00:08.8]} 21... Qxd1+ {[%clk 0:02:22.8]} 22. Rxd1
{[%clk 0:00:05.8]} 22... exf4 {[%clk 0:02:22.3]} 23. exf4 {[%clk 0:00:03.3]}
23... Rhe8+ {[%clk 0:02:19.7]} 0-1

[Event "Live Chess"]
[Site "Chess.com"]
[Date "2023.05.21"]
[Round "-"]
[White "LodeshChess"]
[Black "xx_blindpuffin_xx"]
[Result "0-1"]
[WhiteElo "1176"]
[BlackElo "2205"]
[TimeControl "300"]
[EndTime "18:08:31 PDT"]
[Termination "xx_blindpuffin_xx won by resignation"]

1. e4 {[%clk 0:04:58.5]} 1... c6 {[%clk 0:04:56.3]} 2. Nf3 {[%clk 0:04:53.6]}
2... d5 {[%clk 0:04:55]} 3. d3 {[%clk 0:04:53.4]} 3... dxe4 {[%clk 0:04:52.6]}
4. Ng5 {[%clk 0:04:52.9]} 4... exd3 {[%clk 0:04:50.1]} 5. Bxd3 {[%clk
0:04:52.1]} 5... Nf6 {[%clk 0:04:47.1]} 6. Nxf7 {[%clk 0:04:51.2]} 6... Kxf7
{[%clk 0:04:26.8]} 7. Bg6+ {[%clk 0:04:49.4]} 7... hxg6 {[%clk 0:04:26.3]} 8.
Qxd8 {[%clk 0:04:47.7]} 8... Bf5 {[%clk 0:04:24.3]} 9. Na3 {[%clk 0:04:37.2]}
9... e6 {[%clk 0:04:19.2]} 10. Qc7+ {[%clk 0:04:34.4]} 10... Be7 {[%clk
0:04:17.5]} 11. Qxb7 {[%clk 0:04:33.7]} 11... Nbd7 {[%clk 0:04:15.1]} 12. Bg5
{[%clk 0:04:28.2]} 12... Rab8 {[%clk 0:04:10]} 13. Qxc6 {[%clk 0:04:25.8]} 13...
Rxb2 {[%clk 0:04:00.8]} 14. Bxf6 {[%clk 0:04:18.4]} 14... Nxf6 {[%clk
0:04:00.7]} 15. Nc4 {[%clk 0:04:08.9]} 15... Rxc2 {[%clk 0:03:42.6]} 16. O-O
{[%clk 0:03:58.3]} 16... Rh4 {[%clk 0:03:27.3]} 17. Ne5+ {[%clk 0:03:56.3]}
17... Kg8 {[%clk 0:03:25.1]} 18. Qc8+ {[%clk 0:03:45.7]} 18... Rxc8 {[%clk
0:03:23.1]} 0-1

[Event "Live Chess"]
[Site "Chess.com"]
[Date "2023.05.21"]
[Round "-"]
[White "grillage"]
[Black "LiamBellwood"]
[Result "0-1"]
[WhiteElo "1800"]
[BlackElo "2049"]
[TimeControl "300"]
[EndTime "18:08:53 PDT"]
[Termination "LiamBellwood won by resignation"]

1. d4 {[%clk 0:04:57.3]} 1... e6 {[%clk 0:04:59.9]} 2. Nf3 {[%clk 0:04:52.5]}
2... f5 {[%clk 0:04:59.5]} 3. d5 {[%clk 0:04:50.3]} 3... Nf6 {[%clk 0:04:56.3]}
4. dxe6 {[%clk 0:04:47.7]} 4... d5 {[%clk 0:04:55.1]} 5. Nd4 {[%clk 0:04:34]}
5... g6 {[%clk 0:04:46.1]} 6. Bg5 {[%clk 0:04:27.3]} 6... Bg7 {[%clk 0:04:34.6]}
7. e3 {[%clk 0:04:22]} 7... O-O {[%clk 0:04:28.4]} 8. Be2 {[%clk 0:04:07.8]}
8... c5 {[%clk 0:04:17.5]} 9. Nf3 {[%clk 0:04:02.8]} 9... Bxe6 {[%clk 0:04:16]}
10. O-O {[%clk 0:04:01.8]} 10... Nc6 {[%clk 0:04:15.1]} 11. c4 {[%clk
0:03:54.4]} 11... d4 {[%clk 0:04:01.2]} 12. exd4 {[%clk 0:03:52.2]} 12... Nxd4
{[%clk 0:03:55.7]} 13. Nxd4 {[%clk 0:03:50.4]} 13... Qxd4 {[%clk 0:03:54.1]} 14.
Qxd4 {[%clk 0:03:43.3]} 14... cxd4 {[%clk 0:03:54]} 15. Nd2 {[%clk 0:03:33.8]}
15... Ne4 {[%clk 0:03:53.3]} 16. Nxe4 {[%clk 0:03:10.5]} 16... fxe4 {[%clk
0:03:51.8]} 17. Rac1 {[%clk 0:02:49.6]} 17... Rac8 {[%clk 0:03:40.8]} 18. b3
{[%clk 0:02:47.7]} 18... a5 {[%clk 0:03:04.1]} 19. Rfe1 {[%clk 0:02:37.1]} 19...
a4 {[%clk 0:02:48.5]} 20. h3 {[%clk 0:02:27.9]} 20... axb3 {[%clk 0:02:42.1]}
21. axb3 {[%clk 0:02:26.4]} 21... h6 {[%clk 0:02:30.6]} 22. Bh4 {[%clk
0:02:21.7]} 22... d3 {[%clk 0:02:27.3]} 23. Bg4 {[%clk 0:02:14.2]} 23... Bxg4
{[%clk 0:02:26.7]} 24. hxg4 {[%clk 0:02:13]} 24... d2 {[%clk 0:02:26.3]} 0-1

[Event "Live Chess"]
[Site "Chess.com"]
[Date "2023.05.21"]
[Round "-"]
[White "Cimon"]
[Black "SupremeTactician"]
[Result "0-1"]
[WhiteElo "1853"]
[BlackElo "2308"]
[TimeControl "300"]
[EndTime "18:08:56 PDT"]
[Termination "SupremeTactician won by resignation"]

1. Nf3 {[%clk 0:04:57.7]} 1... e6 {[%clk 0:04:59]} 2. d4 {[%clk 0:04:56.2]} 2...
d5 {[%clk 0:04:58.9]} 3. c4 {[%clk 0:04:54.7]} 3... dxc4 {[%clk 0:04:58.1]} 4.
Nc3 {[%clk 0:04:51.9]} 4... Ne7 {[%clk 0:04:57.4]} 5. e4 {[%clk 0:04:49.5]} 5...
Ng6 {[%clk 0:04:56.8]} 6. Bxc4 {[%clk 0:04:47.1]} 6... Bb4 {[%clk 0:04:54.8]} 7.
O-O {[%clk 0:04:42.9]} 7... Bxc3 {[%clk 0:04:54]} 8. bxc3 {[%clk 0:04:41.6]}
8... O-O {[%clk 0:04:53.9]} 9. Ba3 {[%clk 0:04:23.3]} 9... Re8 {[%clk
0:04:52.4]} 10. Rb1 {[%clk 0:04:19.3]} 10... Nc6 {[%clk 0:04:51.7]} 11. e5
{[%clk 0:04:14.4]} 11... Bd7 {[%clk 0:04:47.7]} 12. Bd3 {[%clk 0:04:12.4]} 12...
Nf4 {[%clk 0:04:47]} 13. Be4 {[%clk 0:04:01.7]} 13... Nd5 {[%clk 0:04:44.9]} 14.
Qd2 {[%clk 0:03:55.4]} 14... g6 {[%clk 0:04:40.5]} 15. Bxd5 {[%clk 0:03:50.8]}
15... exd5 {[%clk 0:04:39.7]} 16. Rxb7 {[%clk 0:03:46.5]} 16... Na5 {[%clk
0:04:38.2]} 17. Rbb1 {[%clk 0:03:44.7]} 17... Nc4 {[%clk 0:04:37.5]} 18. Qc1
{[%clk 0:03:43.6]} 18... Bf5 {[%clk 0:04:36.5]} 19. Rb3 {[%clk 0:03:33.9]} 19...
Be4 {[%clk 0:04:35.7]} 20. Re1 {[%clk 0:03:12.9]} 20... Bxf3 {[%clk 0:04:34.6]}
21. gxf3 {[%clk 0:03:11.7]} 21... Qh4 {[%clk 0:04:29.1]} 22. Qc2 {[%clk
0:02:37.9]} 22... Qf4 {[%clk 0:04:24.2]} 23. Qe2 {[%clk 0:02:20.9]} 23... Rab8
{[%clk 0:04:22.1]} 24. Bc1 {[%clk 0:02:16.5]} 24... Qf5 {[%clk 0:04:19.1]} 25.
Be3 {[%clk 0:01:37.9]} 25... Rxb3 {[%clk 0:04:09.3]} 26. axb3 {[%clk 0:01:36.5]}
26... Nxe3 {[%clk 0:04:09.2]} 27. fxe3 {[%clk 0:01:26.8]} 27... Rb8 {[%clk
0:04:07.6]} 28. b4 {[%clk 0:01:22.5]} 28... Qg5+ {[%clk 0:04:04.8]} 29. Kh1
{[%clk 0:01:20.9]} 29... h5 {[%clk 0:04:02.1]} 30. Ra1 {[%clk 0:01:18.9]} 30...
Rb7 {[%clk 0:03:56.4]} 31. f4 {[%clk 0:01:17.3]} 31... Qf5 {[%clk 0:03:55.1]}
32. Ra6 {[%clk 0:01:11.5]} 32... Qe4+ {[%clk 0:03:53.6]} 33. Kg1 {[%clk
0:01:09.5]} 33... Qb1+ {[%clk 0:03:47]} 34. Kf2 {[%clk 0:01:07.9]} 34... Qh1
{[%clk 0:03:46.2]} 35. Qf3 {[%clk 0:00:59.5]} 35... Qxh2+ {[%clk 0:03:44.8]} 36.
Ke1 {[%clk 0:00:57.8]} 36... Qg1+ {[%clk 0:03:43.8]} 37. Kd2 {[%clk 0:00:55.4]}
37... h4 {[%clk 0:03:41.3]} 38. e6 {[%clk 0:00:48.2]} 38... fxe6 {[%clk
0:03:35]} 39. Rxe6 {[%clk 0:00:45.5]} 39... Kf7 {[%clk 0:03:26.4]} 40. Qxd5
{[%clk 0:00:31.3]} 40... Qf2+ {[%clk 0:03:25.7]} 41. Kd3 {[%clk 0:00:28.3]}
41... Qf1+ {[%clk 0:03:25.2]} 42. Kc2 {[%clk 0:00:25.5]} 42... Qe2+ {[%clk
0:03:24.5]} 43. Kb3 {[%clk 0:00:24.4]} 43... Qd1+ {[%clk 0:03:23.8]} 44. Kc4
{[%clk 0:00:21.8]} 44... Qe2+ {[%clk 0:03:21.7]} 45. Kb3 {[%clk 0:00:18.8]}
45... Qd1+ {[%clk 0:03:20.7]} 46. Kc4 {[%clk 0:00:16.8]} 46... Qf1+ {[%clk
0:03:19.8]} 47. Kb3 {[%clk 0:00:15.3]} 47... Qb1+ {[%clk 0:03:18.9]} 48. Kc4
{[%clk 0:00:14.3]} 48... Qa2+ {[%clk 0:03:18.3]} 49. Kc5 {[%clk 0:00:13.2]}
49... Rb5+ {[%clk 0:03:17.7]} 50. Kxb5 {[%clk 0:00:12]} 50... Qxd5+ {[%clk
0:03:16.9]} 0-1

[Event "Live Chess"]
[Site "Chess.com"]
[Date "2023.05.21"]
[Round "-"]
[White "chessfiction"]
[Black "raminguy"]
[Result "1-0"]
[WhiteElo "2348"]
[BlackElo "1939"]
[TimeControl "300"]
[EndTime "18:09:03 PDT"]
[Termination "chessfiction won by resignation"]

1. e4 {[%clk 0:04:59.3]} 1... e5 {[%clk 0:04:58.7]} 2. Nf3 {[%clk 0:04:58]} 2...
Nc6 {[%clk 0:04:55.4]} 3. Bb5 {[%clk 0:04:56.5]} 3... Nf6 {[%clk 0:04:54.2]} 4.
d3 {[%clk 0:04:55.8]} 4... Ne7 {[%clk 0:04:52.9]} 5. O-O {[%clk 0:04:54.4]} 5...
c6 {[%clk 0:04:52.3]} 6. Ba4 {[%clk 0:04:53.1]} 6... Ng6 {[%clk 0:04:51.6]} 7.
c3 {[%clk 0:04:52.4]} 7... Be7 {[%clk 0:04:51]} 8. Be3 {[%clk 0:04:49.4]} 8...
O-O {[%clk 0:04:50.2]} 9. h3 {[%clk 0:04:48.6]} 9... d6 {[%clk 0:04:49.1]} 10.
Nbd2 {[%clk 0:04:47.6]} 10... Be6 {[%clk 0:04:48.1]} 11. Re1 {[%clk 0:04:46.6]}
11... a5 {[%clk 0:04:47.5]} 12. Nf1 {[%clk 0:04:45.6]} 12... b5 {[%clk 0:04:47]}
13. Bc2 {[%clk 0:04:44.6]} 13... h6 {[%clk 0:04:45.5]} 14. Ng3 {[%clk
0:04:44.2]} 14... Re8 {[%clk 0:04:43.4]} 15. Qd2 {[%clk 0:04:43.5]} 15... d5
{[%clk 0:04:38.7]} 16. d4 {[%clk 0:04:14]} 16... dxe4 {[%clk 0:04:37]} 17. Nxe4
{[%clk 0:04:12.1]} 17... Nxe4 {[%clk 0:04:34.4]} 18. Bxe4 {[%clk 0:04:12]} 18...
exd4 {[%clk 0:04:26.3]} 19. Nxd4 {[%clk 0:04:08.8]} 19... Bd5 {[%clk 0:04:20.5]}
20. Nxc6 {[%clk 0:04:02]} 20... Bxc6 {[%clk 0:04:16.3]} 21. Bxc6 {[%clk
0:04:01.9]} 21... Qxd2 {[%clk 0:04:14.8]} 22. Bxd2 {[%clk 0:04:01.4]} 1-0